fUSD/lending_fUSD_20240105
["ID","MTS","AMOUNT","RATE_DAILY","PERIOD"]
[310265792,1704425500314,-685.21,0.0003726,3]
[310265793,1704425500324,-500.0,0.0003726,3]
[310265794,1704425500334,-720.43,0.0003726,3]
[310265795,1704425500344,-500.0,0.0003726,3]
[310265796,1704425500354,-12713.82,0.0003726,3]
[310265797,1704425500363,-500.0,0.0003726,3]
[310265798,1704425500373,-537.21,0.0003726,3]
[310265799,1704425500382,-500.0,0.0003726,3]
[310265800,1704425500392,-500.0,0.0003726,3]
[310265801,1704425500401,-1128.74,0.0003726,3]
[310265802,1704425500411,-1038.9,0.0003726,3]
[310265803,1704425500420,-500.0,0.0003726,3]
[310265804,1704425500430,-1358.49,0.0003726,3]
[310265805,1704425500439,-856.28,0.0003726,3]
[310265806,1704425500449,-1000.47,0.0003726,3]
[310265807,1704425500458,-1014.3,0.0003726,3]
[310265808,1704425500471,-1090.34,0.0003726,3]
[310265809,1704425500480,-500.0,0.0003726,3]
[310265810,1704425500489,-1239.16,0.0003726,3]
[310265811,1704425500499,-500.0,0.0003726,3]
[310265812,1704425500510,-269.01226707,0.0003726,3]
[310265813,1704425500520,-5374.08,0.0003726,3]
[310265814,1704425500529,-532.58,0.0003726,3]
[310265815,1704425500538,-903.2,0.0003726,3]
[310265816,1704425500548,-500.0,0.0003726,3]
[310265817,1704425500557,-500.0,0.0003726,3]
[310265818,1704425500567,-543.93,0.0003726,3]
[310265819,1704425500577,-500.0,0.0003726,3]
[310265820,1704425500586,-847.35,0.0003726,3]
[310265821,1704425500596,-500.0,0.0003726,3]
[310265822,1704425500605,-506.65,0.0003726,3]
[310265823,1704425500614,-926.28,0.0003726,3]
[310265824,1704425500625,-525.14,0.0003726,3]
[310265825,1704425500635,-500.0,0.0003726,3]
[310265826,1704425500646,-500.0,0.0003726,3]
[310265827,1704425500656,-597.71,0.0003726,3]
[310265828,1704425500666,-7505.95,0.0003726,3]
[310265829,1704425500677,-714.54,0.0003726,3]
[310265830,1704425500686,-500.0,0.0003726,3]
[310265831,1704425500696,-500.0,0.0003726,3]
[310265832,1704425500706,-500.0,0.0003726,3]
[310265833,1704425500715,-500.0,0.0003726,3]
[310265834,1704425500727,-500.0,0.0003726,3]
[310265835,1704425500737,-500.0,0.0003726,3]
[310265836,1704425500746,-500.0,0.0003726,3]
[310265837,1704425500758,-836.59,0.0003726,3]
[310265838,1704425500768,-500.0,0.0003726,3]
[310265839,1704425500778,-192.44656253,0.0003726,3]
[310265840,1704425500788,-500.0,0.0003726,3]
[310265841,1704425500798,-500.0,0.0003726,3]
[310265842,1704425500808,-843.48,0.0003726,3]
[310265843,1704425500819,-500.0,0.0003726,3]
[310265844,1704425500830,-500.0,0.0003726,3]
[310265845,1704425500841,-2843.39,0.0003726,3]
[310265846,1704425500851,-731.98,0.0003726,3]
[310265847,1704425500861,-500.0,0.0003726,3]
[310265848,1704425500870,-500.0,0.0003726,3]
[310265849,1704425500881,-765.74,0.0003726,3]
[310265850,1704425500891,-687.9,0.0003726,3]
[310265851,1704425500902,-500.0,0.0003726,3]
[310265852,1704425500912,-500.0,0.0003726,3]
[310265853,1704425500923,-920.29,0.0003726,3]
[310265854,1704425500936,-500.0,0.0003726,3]
[310265855,1704425500946,-500.0,0.0003726,3]
[310265856,1704425500957,-608.15,0.0003726,3]
[310265857,1704425500967,-500.0,0.0003726,3]
[310265858,1704425500976,-500.0,0.0003726,3]
[310265859,1704425500985,-500.0,0.0003726,3]
[310265860,1704425500995,-500.0,0.0003726,3]
[310265861,1704425501005,-500.0,0.0003726,3]
[310265862,1704425501014,-500.0,0.0003726,3]
[310265863,1704425501023,-162.86,0.0003726,3]
[310265864,1704425501033,-398.43481052,0.0003726,3]
[310265865,1704425501042,-500.0,0.0003726,3]
[310265866,1704425501053,-995.28,0.0003726,3]
[310265867,1704425501064,-1208.34,0.0003726,3]
[310265868,1704425501073,-3826.66,0.0003726,3]
[310265869,1704425501084,-500.0,0.0003726,3]
[310265870,1704425501094,-1465.93,0.0003726,3]
[310265871,1704425501104,-2214.47,0.0003726,3]
[310265872,1704425501114,-975.28,0.0003726,3]
[310265873,1704425501125,-500.0,0.0003726,3]
[310265874,1704425501135,-500.0,0.0003726,3]
[310265875,1704425501144,-406.79094177,0.0003726,3]
[310265876,1704425501154,-500.0,0.0003726,3]
[310265877,1704425501163,-500.0,0.0003726,3]
[310265878,1704425501172,-343.87671656,0.0003726,3]
[310265879,1704425501181,-4026.21,0.0003726,3]
[310265880,1704425501190,-1505.64806425,0.00037314,2]
[310265881,1704425501199,-1000.0,0.00037328,2]
[310265882,1704425501208,-12733.66711088,0.00037342,15]
[310265883,1704425501218,-2874.0,0.00037369,20]
[310265884,1704425501227,-163.331625,0.00037395,2]
[310265885,1704425501236,-238.475206,0.00037395,2]
[310265886,1704425501245,-265.491312,0.00037395,2]
[310265887,1704425501255,-157.40105,0.00037398,2]
[310265888,1704425501266,-8248.29,0.000374,7]
[310265889,1704425501277,-13965.33,0.000374,7]
[310265890,1704425501288,-153.84,0.00037443,2]
[310265891,1704425501299,-150.0,0.00037491,2]
[310265892,1704425501310,-1000.0,0.00037533,2]
[310265893,1704425501320,-1826.78,0.00037534,2]
[310265894,1704425501332,-510.59,0.00037534,3]
[310265895,1704425501342,-615.82463542,0.00037534,3]
[310265896,1704425501352,-500.0,0.00037534,3]
[310265897,1704425501361,-500.0,0.00037534,3]
[310265898,1704425501370,-500.0,0.00037534,3]
[310265899,1704425501379,-585.48,0.00037534,3]
[310265900,1704425501388,-500.0,0.00037534,3]
[310265901,1704425501397,-500.0,0.00037534,3]
[310265902,1704425501406,-524.10755663,0.00037534,3]
[310265903,1704425501415,-500.0,0.00037534,3]
[310265904,1704425501425,-500.0,0.00037534,3]
[310265905,1704425501434,-500.0,0.00037534,3]
[310265906,1704425501443,-462.51120354,0.00037534,3]
[310265907,1704425501452,-500.0,0.00037534,3]
[310265908,1704425501461,-500.0,0.00037534,3]
[310265909,1704425501471,-475.65376534,0.00037534,3]
[310265910,1704425501482,-526.33934513,0.00037534,3]
[310265911,1704425501491,-500.0,0.00037534,3]
[310265912,1704425501500,-500.0,0.00037534,3]
[310265913,1704425501509,-500.0,0.00037534,3]
[310265914,1704425501519,-517.4943774,0.00037534,3]
[310265915,1704425501529,-500.0,0.00037534,3]
[310265916,1704425501539,-500.0,0.00037534,3]
[310265917,1704425501550,-500.0,0.00037534,3]
[310265918,1704425501559,-500.0,0.00037534,3]
[310265919,1704425501569,-500.0,0.00037534,3]
[310265920,1704425501578,-500.0,0.00037534,3]
[310265921,1704425501588,-500.0,0.00037534,3]
[310265922,1704425501599,-500.0,0.00037534,3]
[310265923,1704425501608,-500.0,0.00037534,3]
[310265924,1704425501618,-914.92,0.00037534,3]
[310265925,1704425501628,-623.65306322,0.00037534,3]
[310265926,1704425501639,-543.32162711,0.00037534,3]
[310265927,1704425501648,-335.1170587,0.00037534,3]
[310265928,1704425501657,-500.0,0.00037534,3]
[310265929,1704425501666,-522.70569018,0.00037534,3]
[310265930,1704425501675,-375.16661501,0.00037534,3]
[310265931,1704425501684,-729.05,0.00037534,3]
[310265932,1704425501693,-500.0,0.00037534,3]
[310265933,1704425501702,-1671.27,0.00037534,3]
[310265934,1704425501712,-500.0,0.00037534,3]
[310265935,1704425501723,-500.0,0.00037534,3]
[310265936,1704425501732,-500.0,0.00037534,3]
[310265937,1704425501741,-500.0,0.00037534,3]
[310265938,1704425501752,-500.0,0.00037534,3]
[310265939,1704425501762,-189.64911196,0.00037534,3]
[310265940,1704425501771,-500.0,0.00037534,3]
[310265941,1704425501780,-500.0,0.00037534,3]
[310265942,1704425501790,-838.94,0.00037534,3]
[310265943,1704425501799,-500.0,0.00037534,3]
[310265944,1704425501809,-500.0,0.00037534,3]
[310265945,1704425501819,-500.0,0.00037534,3]
[310265946,1704425501829,-500.0,0.00037534,3]
[310265947,1704425501839,-500.0,0.00037534,3]
[310265948,1704425501849,-159.9463016,0.00037534,3]
[310265949,1704425501859,-500.0,0.00037534,3]
[310265950,1704425501868,-500.0,0.00037534,3]
[310265951,1704425501878,-318.76535384,0.00037534,3]
[310265952,1704425501887,-500.0,0.00037534,3]
[310265953,1704425501897,-500.0,0.00037534,3]
[310265954,1704425501906,-500.0,0.00037534,3]
[310265955,1704425501915,-500.0,0.00037534,3]
[310265956,1704425501924,-500.0,0.00037534,3]
[310265957,1704425501934,-500.0,0.00037534,3]
[310265958,1704425501944,-500.0,0.00037534,3]
[310265959,1704425501954,-203.1967095,0.00037534,3]
[310265960,1704425501963,-277.02950873,0.00037534,3]
[310265961,1704425501972,-500.0,0.00037534,3]
[310265962,1704425501983,-500.0,0.00037534,3]
[310265963,1704425501992,-500.0,0.00037534,3]
[310265964,1704425502001,-500.0,0.00037534,3]
[310265965,1704425502010,-582.72087775,0.00037534,3]
[310265966,1704425502020,-500.0,0.00037534,3]
[310265967,1704425502030,-226.74529396,0.00037534,3]
[310265968,1704425502040,-500.0,0.00037534,3]
[310265969,1704425502049,-500.0,0.00037534,3]
[310265970,1704425502058,-500.0,0.00037534,3]
[310265971,1704425502067,-500.0,0.00037534,3]
[310265972,1704425502076,-500.0,0.00037534,3]
[310265973,1704425502085,-395.04905409,0.00037534,3]
[310265974,1704425502094,-500.0,0.00037534,3]
[310265975,1704425502103,-500.0,0.00037534,3]
[310265976,1704425502112,-500.0,0.00037534,3]
[310265977,1704425502121,-424.62308128,0.00037534,3]
[310265978,1704425502130,-581.59,0.00037534,3]
[310265979,1704425502140,-419.07649849,0.00037534,3]
[310265980,1704425502149,-501.25,0.00037534,3]
[310265981,1704425502158,-471.01977986,0.00037534,3]
[310265982,1704425502167,-500.0,0.00037534,3]
[310265983,1704425502177,-500.0,0.00037534,3]
[310265984,1704425502187,-332.1611407,0.00037534,3]
[310265985,1704425502196,-890.64,0.00037534,3]
[310265986,1704425502206,-500.0,0.00037534,3]
[310265987,1704425502216,-500.0,0.00037534,3]
[310265988,1704425502226,-500.0,0.00037534,3]
[310265989,1704425502236,-500.0,0.00037534,3]
[310265990,1704425502246,-421.49172722,0.00037534,3]
[310265991,1704425502256,-500.0,0.00037534,3]
[310265992,1704425502266,-448.07347972,0.00037534,3]
[310265993,1704425502276,-500.0,0.00037534,3]
[310265994,1704425502285,-500.0,0.00037534,3]
[310265995,1704425502295,-299.39552052,0.00037534,3]
[310265996,1704425502305,-500.0,0.00037534,3]
[310265997,1704425502314,-170.70049003,0.00037534,3]
[310265998,1704425502323,-432.56200255,0.00037534,3]
[310265999,1704425502333,-500.0,0.00037534,3]
[310266000,1704425502342,-467.80519452,0.00037534,3]
[310266001,1704425502352,-500.0,0.00037534,3]
[310266002,1704425502361,-500.0,0.00037534,3]
[310266003,1704425502370,-619.1550577,0.00037534,3]
[310266004,1704425502379,-500.0,0.00037534,3]
[310266005,1704425502389,-500.0,0.00037534,3]
[310266006,1704425502398,-500.0,0.00037534,3]
[310266007,1704425502407,-500.0,0.00037534,3]
[310266008,1704425502416,-516.34938278,0.00037534,3]
[310266009,1704425502426,-500.0,0.00037534,3]
[310266010,1704425502435,-500.0,0.00037534,3]
[310266011,1704425502445,-500.0,0.00037534,3]
[310266012,1704425502455,-500.0,0.00037534,3]
[310266013,1704425502465,-317.3157347,0.00037534,3]
[310266014,1704425502479,-500.0,0.00037534,3]
[310266015,1704425502488,-500.0,0.00037534,3]
[310266016,1704425502497,-500.0,0.00037534,3]
[310266017,1704425502507,-235.66570768,0.00037534,3]
[310266018,1704425502517,-500.0,0.00037534,3]
[310266019,1704425502526,-500.0,0.00037534,3]
[310266020,1704425502535,-500.0,0.00037534,3]
[310266021,1704425502546,-500.0,0.00037534,3]
[310266022,1704425502557,-500.0,0.00037534,3]
[310266023,1704425502567,-500.0,0.00037534,3]
[310266024,1704425502577,-500.0,0.00037534,3]
[310266025,1704425502588,-500.0,0.00037534,3]
[310266026,1704425502599,-412.36498412,0.00037534,3]
[310266027,1704425502609,-500.0,0.00037534,3]
[310266028,1704425502619,-500.0,0.00037534,3]
[310266029,1704425502630,-153.68056273,0.00037534,3]
[310266030,1704425502639,-164.10586097,0.00037534,3]
[310266031,1704425502650,-500.0,0.00037534,3]
[310266032,1704425502660,-500.18,0.00037534,3]
[310266033,1704425502670,-500.0,0.00037534,3]
[310266034,1704425502680,-163.97491872,0.00037534,3]
[310266035,1704425502689,-500.0,0.00037534,3]
[310266036,1704425502699,-500.0,0.00037534,3]
[310266037,1704425502710,-1197.77,0.00037534,3]
[310266038,1704425502719,-174.64261633,0.00037534,3]
[310266039,1704425502729,-500.0,0.00037534,3]
[310266040,1704425502740,-500.0,0.00037534,3]
[310266041,1704425502750,-500.0,0.00037534,3]
[310266042,1704425502760,-500.0,0.00037534,3]
[310266043,1704425502770,-652.01,0.00037534,3]
[310266044,1704425502780,-500.0,0.00037534,3]
[310266045,1704425502790,-511.87,0.00037534,3]
[310266046,1704425502966,-500.0,0.00037534,3]
[310266047,1704425502979,-503.60893026,0.00037534,3]
[310266048,1704425502990,-500.0,0.00037534,3]
[310266049,1704425503001,-500.0,0.00037534,3]
[310266050,1704425503012,-3155.09,0.00037534,3]
[310266051,1704425503023,-1385.33,0.00037534,3]
[310266052,1704425503034,-500.0,0.00037534,3]
[310266053,1704425503044,-500.0,0.00037534,3]
[310266054,1704425503055,-869.26,0.00037534,3]
[310266055,1704425503066,-500.0,0.00037534,3]
[310266056,1704425503077,-500.0,0.00037534,3]
[310266057,1704425503086,-500.0,0.00037534,3]
[310266058,1704425503100,-500.0,0.00037534,3]
[310266059,1704425503113,-559.1,0.00037534,3]
[310266060,1704425503122,-500.0,0.00037534,3]
[310266061,1704425503132,-500.0,0.00037534,3]
[310266062,1704425503142,-500.0,0.00037534,3]
[310266063,1704425503152,-500.0,0.00037534,3]
[310266064,1704425503162,-500.0,0.00037534,3]
[310266065,1704425503172,-500.0,0.00037534,3]
[310266066,1704425503182,-2569.95,0.00037534,3]
[310266067,1704425503192,-576.28,0.00037534,3]
[310266068,1704425503202,-500.0,0.00037534,3]
[310266069,1704425503212,-741.91,0.00037534,3]
[310266070,1704425503222,-1829.56,0.00037534,3]
[310266071,1704425503232,-500.0,0.00037534,3]
[310266072,1704425503242,-566.04959342,0.00037534,3]
[310266073,1704425503252,-500.0,0.00037534,3]
[310266074,1704425503261,-2961.4,0.00037534,3]
[310266075,1704425503271,-675.46,0.00037534,3]
[310266076,1704425503281,-500.0,0.00037534,3]
[310266077,1704425503291,-2578.41,0.00037534,3]
[310266078,1704425503302,-500.0,0.00037534,3]
[310266079,1704425503312,-576.96,0.00037534,3]
[310266080,1704425503322,-500.0,0.00037534,3]
[310266081,1704425503332,-1512.37,0.00037534,3]
[310266082,1704425503342,-500.0,0.00037534,3]
[310266083,1704425503356,-500.0,0.00037534,3]
[310266084,1704425503366,-1272.83,0.00037534,3]
[310266085,1704425503375,-500.0,0.00037534,3]
[310266086,1704425503385,-500.0,0.00037534,3]
[310266087,1704425503395,-743.82,0.00037534,3]
[310266088,1704425503405,-616.09,0.00037534,3]
[310266089,1704425503414,-2881.09,0.00037534,3]
[310266090,1704425503424,-269.37213225,0.00037534,2]
[310266091,1704425503433,-500.0,0.00037534,3]
[310266092,1704425503443,-4571.22,0.00037534,3]
[310266093,1704425503453,-4339.97,0.00037534,3]
[310266094,1704425503463,-4803.84,0.00037534,3]
[310266095,1704425503472,-500.0,0.00037534,3]
[310266096,1704425503483,-699.3,0.00037534,3]
[310266097,1704425503492,-500.0,0.00037534,3]
[310266098,1704425503501,-500.0,0.00037534,3]
[310266099,1704425503511,-500.0,0.00037534,3]
[310266100,1704425503521,-1187.06,0.00037534,3]
[310266101,1704425503530,-741.45,0.00037534,3]
[310266102,1704425503540,-713.99,0.00037534,3]
[310266103,1704425503549,-500.0,0.00037534,3]
[310266104,1704425503558,-1438.74,0.00037534,3]
[310266105,1704425503567,-1151.77,0.00037534,3]
[310266106,1704425503577,-500.0,0.00037534,3]
[310266107,1704425503586,-1780.23,0.00037534,3]
[310266108,1704425503598,-1941.56,0.00037534,3]
[310266109,1704425503607,-500.0,0.00037534,3]
[310266110,1704425503616,-500.0,0.00037534,3]
[310266111,1704425503625,-507.12,0.00037534,3]
[310266112,1704425503634,-737.76,0.00037534,3]
[310266113,1704425503643,-1683.81,0.00037534,3]
[310266114,1704425503653,-500.0,0.00037534,3]
[310266115,1704425503662,-757.21,0.00037534,3]
[310266116,1704425503671,-605.55,0.00037534,3]
[310266117,1704425503681,-721.22,0.00037534,3]
[310266118,1704425503690,-1818.9,0.00037534,3]
[310266119,1704425503699,-1636.73,0.00037534,3]
[310266120,1704425503709,-808.83,0.00037534,3]
[310266121,1704425503719,-500.0,0.00037534,3]
[310266122,1704425503728,-500.0,0.00037534,3]
[310266123,1704425503738,-1154.3,0.00037534,3]
[310266124,1704425503748,-500.0,0.00037534,3]
[310266125,1704425503758,-2367.44,0.00037534,3]
[310266126,1704425503768,-685.21,0.00037534,3]
[310266127,1704425503778,-720.43,0.00037534,3]
[310266128,1704425503787,-500.0,0.00037534,3]
[310266129,1704425503797,-500.0,0.00037534,3]
[310266130,1704425503807,-12713.82,0.00037534,3]
[310266131,1704425503817,-500.0,0.00037534,3]
[310266132,1704425503827,-537.21,0.00037534,3]
[310266133,1704425503836,-500.0,0.00037534,3]
[310266134,1704425503847,-500.0,0.00037534,3]
[310266135,1704425503856,-1128.74,0.00037534,3]
[310266136,1704425503865,-1038.9,0.00037534,3]
[310266137,1704425503874,-501.45102624,0.00037534,3]
[310266138,1704425503884,-1358.49,0.00037534,3]
[310266139,1704425503894,-856.28,0.00037534,3]
[310266140,1704425503903,-1000.47,0.00037534,3]
[310266141,1704425503912,-1014.3,0.00037534,3]
[310266142,1704425503921,-1090.34,0.00037534,3]
[310266143,1704425503930,-181.43598948,0.00037534,3]
[310266144,1704425503940,-1239.16,0.00037534,3]
[310266145,1704425503949,-500.0,0.00037534,3]
[310266146,1704425503960,-5374.08,0.00037534,3]
[310266147,1704425503969,-532.58,0.00037534,3]
[310266148,1704425503978,-903.2,0.00037534,3]
[310266149,1704425503988,-500.0,0.00037534,3]
[310266150,1704425503998,-500.0,0.00037534,3]
[310266151,1704425504007,-543.93,0.00037534,3]
[310266152,1704425504016,-500.0,0.00037534,3]
[310266153,1704425504026,-500.0,0.00037534,3]
[310266154,1704425504035,-847.35,0.00037534,3]
[310266155,1704425504045,-926.28,0.00037534,3]
[310266156,1704425504055,-525.14,0.00037534,3]
[310266157,1704425504064,-500.0,0.00037534,3]
[310266158,1704425504073,-509.46794019,0.00037534,3]
[310266159,1704425504082,-597.71,0.00037534,3]
[310266160,1704425504092,-7505.95,0.00037534,3]
[310266161,1704425504103,-714.54,0.00037534,3]
[310266162,1704425504112,-165.41240883,0.00037534,3]
[310266163,1704425504121,-500.0,0.00037534,3]
[310266164,1704425504131,-500.0,0.00037534,3]
[310266165,1704425504140,-500.0,0.00037534,3]
[310266166,1704425504149,-500.0,0.00037534,3]
[310266167,1704425504159,-500.0,0.00037534,3]
[310266168,1704425504168,-500.0,0.00037534,3]
[310266169,1704425504177,-500.0,0.00037534,3]
[310266170,1704425504186,-836.59,0.00037534,3]
[310266171,1704425504196,-500.0,0.00037534,3]
[310266172,1704425504205,-500.0,0.00037534,3]
[310266173,1704425504217,-843.48,0.00037534,3]
[310266174,1704425504228,-500.0,0.00037534,3]
[310266175,1704425504237,-500.0,0.00037534,3]
[310266176,1704425504246,-2843.39,0.00037534,3]
[310266177,1704425504258,-731.98,0.00037534,3]
[310266178,1704425504267,-500.0,0.00037534,3]
[310266179,1704425504276,-578.86452425,0.00037534,3]
[310266180,1704425504287,-765.74,0.00037534,3]
[310266181,1704425504298,-687.9,0.00037534,3]
[310266182,1704425504308,-500.0,0.00037534,3]
[310266183,1704425504317,-500.0,0.00037534,3]
[310266184,1704425504327,-920.29,0.00037534,3]
[310266185,1704425504338,-500.0,0.00037534,3]
[310266186,1704425504350,-608.15,0.00037534,3]
[310266187,1704425504359,-457.28775511,0.00037534,3]
[310266188,1704425504367,-500.0,0.00037534,3]
[310266189,1704425504377,-343.99406973,0.00037534,3]
[310266190,1704425504387,-500.0,0.00037534,3]
[310266191,1704425504396,-500.0,0.00037534,3]
[310266192,1704425504406,-500.0,0.00037534,3]
[310266193,1704425504415,-500.0,0.00037534,3]
[310266194,1704425504425,-500.0,0.00037534,3]
[310266195,1704425504434,-995.28,0.00037534,3]
[310266196,1704425504444,-1208.34,0.00037534,3]
[310266197,1704425504453,-3826.66,0.00037534,3]
[310266198,1704425504462,-500.0,0.00037534,3]
[310266199,1704425504475,-1465.93,0.00037534,3]
[310266200,1704425504484,-2214.47,0.00037534,3]
[310266201,1704425504494,-975.28,0.00037534,3]
[310266202,1704425504503,-500.0,0.00037534,3]
[310266203,1704425504513,-500.0,0.00037534,3]
[310266204,1704425504522,-317.94659913,0.00037534,3]
[310266205,1704425504531,-500.0,0.00037534,3]
[310266206,1704425504540,-157.40105,0.00037598,2]
[310266207,1704425504550,-1249.23,0.000376,7]
[310266208,1704425504559,-165.49169783,0.00037605,14]
[310266209,1704425504569,-1505.64806425,0.00037719,2]
[310266210,1704425504578,-1000.0,0.00037739,2]
[310266211,1704425504587,-2874.0,0.00037754,20]
[310266212,1704425504598,-153.81315469,0.00037769,2]
[310266213,1704425504607,-157.40105,0.00037798,2]
[310266214,1704425504617,-1528.141427,0.000378,25]
[310266215,1704425504627,-373.253428,0.000378,2]
[310266216,1704425504638,-201.0,0.00037805,18]
[310266217,1704425504647,-1451.99860475,0.00037807,2]
[310266218,1704425504656,-200.0,0.00037808,2]
[310266219,1704425504666,-350.23223636,0.00037808,4]
[310266220,1704425504675,-3408.18494152,0.00037808,3]
[310266221,1704425504685,-510.59,0.00037808,3]
[310266222,1704425504694,-500.0,0.00037808,3]
[310266223,1704425504704,-500.0,0.00037808,3]
[310266224,1704425504713,-500.0,0.00037808,3]
[310266225,1704425504723,-585.48,0.00037808,3]
[310266226,1704425504733,-500.0,0.00037808,3]
[310266227,1704425504742,-500.0,0.00037808,3]
[310266228,1704425504752,-500.0,0.00037808,3]
[310266229,1704425504762,-500.0,0.00037808,3]
[310266230,1704425504772,-500.0,0.00037808,3]
[310266231,1704425504782,-500.0,0.00037808,3]
[310266232,1704425504791,-500.0,0.00037808,3]
[310266233,1704425504801,-500.0,0.00037808,3]
[310266234,1704425504810,-500.0,0.00037808,3]
[310266235,1704425504819,-511.93718563,0.00037808,3]
[310266236,1704425504828,-500.0,0.00037808,3]
[310266237,1704425504838,-500.0,0.00037808,3]
[310266238,1704425504848,-500.0,0.00037808,3]
[310266239,1704425504857,-500.0,0.00037808,3]
[310266240,1704425504866,-608.08,0.00037808,3]
[310266241,1704425504875,-500.0,0.00037808,3]
[310266242,1704425504884,-500.0,0.00037808,3]
[310266243,1704425504895,-500.0,0.00037808,3]
[310266244,1704425504960,-500.0,0.00037808,3]
[310266245,1704425504970,-914.92,0.00037808,3]
[310266246,1704425504979,-500.0,0.00037808,3]
[310266247,1704425504988,-729.05,0.00037808,3]
[310266248,1704425504997,-395.59267549,0.00037808,3]
[310266249,1704425505007,-1671.27,0.00037808,3]
[310266250,1704425505017,-500.0,0.00037808,3]
[310266251,1704425505026,-500.0,0.00037808,3]
[310266252,1704425505035,-500.0,0.00037808,3]
[310266253,1704425505046,-500.0,0.00037808,3]
[310266254,1704425505055,-500.0,0.00037808,3]
[310266255,1704425505064,-500.0,0.00037808,3]
[310266256,1704425505073,-500.0,0.00037808,3]
[310266257,1704425505083,-838.94,0.00037808,3]
[310266258,1704425505092,-500.0,0.00037808,3]
[310266259,1704425505102,-500.0,0.00037808,3]
[310266260,1704425505111,-500.0,0.00037808,3]
[310266261,1704425505120,-500.0,0.00037808,3]
[310266262,1704425505129,-500.0,0.00037808,3]
[310266263,1704425505138,-500.0,0.00037808,3]
[310266264,1704425505147,-500.0,0.00037808,3]
[310266265,1704425505157,-500.0,0.00037808,3]
[310266266,1704425505165,-500.0,0.00037808,3]
[310266267,1704425505174,-500.0,0.00037808,3]
[310266268,1704425505183,-500.0,0.00037808,3]
[310266269,1704425505193,-500.0,0.00037808,3]
[310266270,1704425505202,-500.0,0.00037808,3]
[310266271,1704425505213,-500.0,0.00037808,3]
[310266272,1704425505223,-500.0,0.00037808,3]
[310266273,1704425505232,-500.0,0.00037808,3]
[310266274,1704425505243,-500.0,0.00037808,3]
[310266275,1704425505253,-500.0,0.00037808,3]
[310266276,1704425505262,-500.0,0.00037808,3]
[310266277,1704425505271,-500.0,0.00037808,3]
[310266278,1704425505280,-500.0,0.00037808,3]
[310266279,1704425505289,-500.0,0.00037808,3]
[310266280,1704425505298,-500.0,0.00037808,3]
[310266281,1704425505307,-635.71630795,0.00037808,3]
[310266282,1704425505317,-500.0,0.00037808,3]
[310266283,1704425505326,-277.49191948,0.00037808,3]
[310266284,1704425505335,-500.0,0.00037808,3]
[310266285,1704425505344,-581.59,0.00037808,3]
[310266286,1704425505355,-501.25,0.00037808,3]
[310266287,1704425505364,-500.0,0.00037808,3]
[310266288,1704425505374,-500.0,0.00037808,3]
[310266289,1704425505383,-890.64,0.00037808,3]
[310266290,1704425505393,-500.0,0.00037808,3]
[310266291,1704425505402,-500.0,0.00037808,3]